fUST/lending_fUST_20240711
["ID","MTS","AMOUNT","RATE_DAILY","PERIOD"]
[331702755,1720665039462,-500.0,0.00029977,2]
[331702756,1720665039472,-500.0,0.00029977,2]
[331702757,1720665039482,-500.0,0.00029977,2]
[331702758,1720665039492,-500.0,0.00029977,2]
[331702759,1720665039502,-500.0,0.00029977,2]
[331702760,1720665039512,-500.0,0.00029977,2]
[331702761,1720665039522,-593.80175077,0.00029977,2]
[331702762,1720665039532,-500.0,0.00029977,2]
[331702763,1720665039542,-500.0,0.00029977,2]
[331702764,1720665039553,-500.0,0.00029977,2]
[331702765,1720665039562,-500.0,0.00029977,2]
[331702766,1720665039572,-500.0,0.00029977,2]
[331702767,1720665039582,-500.0,0.00029977,2]
[331702768,1720665039592,-300.0,0.00029977,2]
[331702769,1720665039602,-500.0,0.00029977,2]
[331702770,1720665039612,-500.0,0.00029977,2]
[331702771,1720665039623,-500.0,0.00029977,2]
[331702772,1720665039635,-500.0,0.00029977,2]
[331702773,1720665039645,-500.0,0.00029977,2]
[331702774,1720665039655,-500.0,0.00029977,2]
[331702775,1720665039666,-33712.55117762,0.00029978,4]
[331702787,1720665040929,-31511.67946768,0.00029978,4]
[331702788,1720665040939,-65224.2306453,0.0002999,4]
[331702789,1720665040948,-402.67299645,0.00029999,2]
[331702790,1720665040958,-526.29790288,0.00029999,10]
[331702791,1720665040968,-909.19310766,0.00029999,2]
[331702792,1720665040979,-170.51355908,0.0003,4]
[331702793,1720665040989,-63987.68578863,0.0003,2]
[331702794,1720665040999,-643.7802781,0.0003,4]
[331702795,1720665041010,-292.0,0.0003,2]
[331702796,1720665041020,-2475.88098441,0.0003043,2]
[331702797,1720665041030,-3000.0,0.000306,4]
[331702798,1720665041039,-3000.0,0.0003061,4]
[331702799,1720665041049,-3000.0,0.0003062,4]
[331702800,1720665041059,-3000.0,0.0003063,4]
[331702801,1720665041068,-3000.0,0.0003064,5]
[331702802,1720665041078,-65224.2306453,0.0003064,4]
[331702803,1720665041087,-3000.0,0.0003065,5]
[331702804,1720665041097,-150.5,0.00030659,62]
[331702805,1720665041107,-3000.0,0.0003066,5]
[331702806,1720665041118,-150.5,0.00030669,62]
[331702807,1720665041128,-3000.0,0.0003067,5]
[331702808,1720665041139,-150.5,0.00030679,62]
[331702809,1720665041149,-3000.0,0.0003068,5]
[331702810,1720665041158,-3000.0,0.0003069,5]
[331702811,1720665041168,-3208.309868,0.000307,5]
[331702812,1720665041177,-150.60173835,0.00030861,2]
[331702813,1720665041186,-366.69138635,0.00030913,2]
[331702814,1720665041196,-5293.69736034,0.00030933,2]
[331702815,1720665041205,-2475.88098441,0.00031081,2]
[331702816,1720665041214,-160.0,0.00031113,3]
[331702817,1720665041224,-499.99255164,0.00031251,4]
[331702818,1720665041234,-2475.88098441,0.00031731,2]
[331702819,1720665041243,-361.5,0.00032,120]
[331702820,1720665041253,-318.29831629,0.0003208,2]
[331702821,1720665041263,-500.0,0.0003208,2]
[331702822,1720665041272,-500.0,0.0003208,2]
[331702823,1720665041282,-500.0,0.0003208,2]
[331702824,1720665041292,-500.0,0.0003208,2]
[331702825,1720665041301,-203.39004271,0.0003208,2]
[331702826,1720665041310,-500.0,0.0003208,2]
[331702827,1720665041319,-492.3730299,0.0003208,2]
[331702828,1720665041328,-500.0,0.0003208,2]
[331702829,1720665041338,-500.0,0.0003208,2]
[331702830,1720665041347,-362.05395604,0.0003208,2]
[331702831,1720665041357,-500.0,0.0003208,2]
[331702832,1720665041367,-500.0,0.0003208,2]
[331702833,1720665041376,-500.0,0.0003208,2]
[331702834,1720665041387,-500.0,0.0003208,2]
[331702835,1720665041397,-203.5455452,0.0003208,2]
[331702836,1720665041407,-65224.2306453,0.00032081,4]
[331702837,1720665041417,-34640.0599729,0.00032091,5]
[331702891,1720665043741,-155.18079,0.0003091,4]
[331702893,1720665043750,-6213.58324991,0.00032091,5]
[331702896,1720665044086,-91.17396627,0.00032091,5]
[331702938,1720665219155,949.0,0.00016,2]
[331702945,1720665443117,262.3278843,0.0001,2]
[331702946,1720665443607,612.3769053,0.00016255,2]
[331702947,1720665454201,171.48721802,0.00016255,2]
[331702951,1720665727681,16324.80406636,0.00016255,2]
[331702952,1720665782134,920.19989762,0.00016255,2]
[331702954,1720665809153,414.37539805,0.00016255,2]
[331702955,1720665857446,7000.0,0.00016255,2]
[331702956,1720665857471,4585.70166789,0.00016255,2]
[331702958,1720665977055,3287.83983401,0.00016255,2]
[331702959,1720665981389,154.59033561,0.00016255,2]
[331702960,1720665996394,154.59033561,0.00016255,2]
[331702963,1720666049398,-422.783159,0.00018677,2]
[331702964,1720666049421,-1408.26501,0.00018802,2]
[331702965,1720666049442,-373.31457561,0.000189,2]
[331702966,1720666049462,-163.2291875,0.00019178,2]
[331702967,1720666049482,-823.5471562,0.00019241,2]
[331702968,1720666049503,-250.0,0.00019967,2]
[331702969,1720666049525,-300.0,0.00019999,2]
[331702970,1720666049547,-300.0,0.00019999,2]
[331702971,1720666049568,-1549.5827518,0.0002,2]
[331702972,1720666049591,-8818.58197138,0.0002,2]
[331702975,1720666165102,-1075.00694699,0.000199,2]
[331702976,1720666165125,-300.0,0.00019999,2]
[331702977,1720666165146,-300.0,0.00019999,2]
[331702978,1720666165166,-39880.77052544,0.0002,2]
[331702979,1720666165186,-275.02834948,0.0002,2]
[331702980,1720666165208,-429.99633819,0.0002,2]
[331702981,1720666165230,-171.18851748,0.0002,2]
[331702982,1720666165250,-2000.0,0.0002,2]
[331702983,1720666165270,-382.597264,0.00021096,2]
[331702984,1720666165290,-321.0,0.00021777,2]
[331702985,1720666165311,-166.666666,0.00021918,2]
[331702986,1720666165330,-420.0,0.00021999,2]
[331702987,1720666165350,-1075.00694698,0.00022844,2]
[331702988,1720666165372,-166.666666,0.000232,2]
[331702989,1720666167143,587.52851447,0.0002,2]
[331703034,1720666239167,-909.19310766,0.00023453,2]
[331703035,1720666239177,-300.0,0.00023626,2]
[331703036,1720666239188,-24900.0,0.00023627,2]
[331703037,1720666239198,-373.31457561,0.000239,2]
[331703038,1720666239208,-155.45465387,0.00023966,2]
[331703039,1720666239220,-155.45465387,0.00023966,2]
[331703040,1720666239231,-478.8353479,0.00024242,2]
[331703041,1720666239241,-166.666666,0.00024482,2]
[331703042,1720666239251,-380.0,0.00024658,2]
[331703043,1720666239260,-2000.0,0.00025401,2]
[331703044,1720666239271,-2037.67,0.00025481,3]
[331703045,1720666239281,-131308.331015,0.00025491,3]
[331703046,1720666239290,-167.68652899,0.000255,2]
[331703047,1720666239300,-4373.08559011,0.00025501,5]
[331703048,1720666239310,-30000.0,0.00025501,2]
[331703049,1720666239320,-52150.85185038,0.00025501,2]
[331703050,1720666239330,-532.50847481,0.00025501,2]
[331703051,1720666239340,-276.38559097,0.00025501,2]
[331703052,1720666239351,-2475.88098444,0.00025687,2]
[331703053,1720666239360,-402.67299645,0.00025869,2]
[331703054,1720666239370,-376.98708664,0.00025869,2]
[331703055,1720666239380,-251.71857067,0.00025902,2]
[331703056,1720666239390,-157.0,0.00025989,2]
[331703057,1720666239400,-2475.88098441,0.00026567,2]
[331703058,1720666239410,-403.69228639,0.00026574,2]
[331703059,1720666239419,-191.20491413,0.00027184,2]
[331703060,1720666239429,-524.1077099,0.00027194,2]
[331703061,1720666239439,-284.5704575,0.00027194,2]
[331703062,1720666239449,-1604.39902116,0.00027194,7]
[331703063,1720666239458,-382.597264,0.00027195,2]
[331703064,1720666239468,-150.5,0.00027357,62]
[331703065,1720666239479,-150.5,0.00027367,62]
[331703066,1720666239488,-150.5,0.00027377,62]
[331703067,1720666239498,-32866.99140136,0.00027387,3]
[331703068,1720666239510,-11477.28799954,0.00027387,3]
[331703074,1720666241314,-2423.17315558,0.00023453,2]
[331703075,1720666241324,-152618.2171211,0.00027387,3]
[331703076,1720666241335,-500.0,0.00027396,2]
[331703077,1720666241345,-500.0,0.00027396,2]
[331703078,1720666241355,-500.0,0.00027396,2]
[331703079,1720666241365,-318.29831629,0.00027396,2]
[331703080,1720666241376,-500.0,0.00027396,2]
[331703081,1720666241386,-500.0,0.00027396,2]
[331703082,1720666241395,-500.0,0.00027396,2]
[331703083,1720666241404,-500.0,0.00027396,2]
[331703084,1720666241414,-361.01701281,0.00027396,2]
[331703085,1720666241423,-500.0,0.00027396,2]
[331703086,1720666241432,-262.05395604,0.00027396,2]
[331703087,1720666241443,-453.5455452,0.00027396,2]
[331703088,1720666241451,-500.0,0.00027396,2]
[331703089,1720666241460,-500.0,0.00027396,2]
[331703090,1720666241469,-500.0,0.00027396,2]
[331703091,1720666241478,-501.37482477,0.00027397,7]
[331703092,1720666241488,-555.99480381,0.00027397,7]
[331703093,1720666241497,-502.13374575,0.00027397,7]
[331703094,1720666241506,-528.52275508,0.00027397,7]
[331703095,1720666241516,-512.46239049,0.00027397,7]
[331703096,1720666241525,-479.29304862,0.00027397,7]
[331703097,1720666241535,-500.0,0.00027397,7]
[331703098,1720666241545,-505.58590516,0.00027397,7]
[331703099,1720666241554,-1459.56,0.00027397,4]
[331703100,1720666241564,-500.0,0.00027397,7]
[331703101,1720666241574,-500.0,0.00027397,7]
[331703102,1720666241583,-500.0,0.00027397,2]
[331703103,1720666241592,-511.19878293,0.00027397,7]
[331703104,1720666241602,-585.28300967,0.00027397,2]
[331703105,1720666241611,-500.0,0.00027397,7]
[331703106,1720666241621,-500.0,0.00027397,7]
[331703107,1720666241630,-576.92146685,0.00027397,7]
[331703108,1720666241640,-500.0,0.00027397,7]
[331703109,1720666241649,-500.0,0.00027397,7]
[331703110,1720666241659,-500.0,0.00027397,7]
[331703111,1720666241668,-500.0,0.00027397,7]
[331703112,1720666241677,-1627.1,0.00027397,7]
[331703113,1720666241686,-533.48997038,0.00027397,2]
[331703114,1720666241695,-916.63,0.00027397,7]
[331703115,1720666241705,-3721.14,0.00027397,7]
[331703116,1720666241714,-500.0,0.00027397,7]
[331703117,1720666241723,-500.0,0.00027397,7]
[331703118,1720666241732,-500.0,0.00027397,7]
[331703119,1720666241741,-500.0,0.00027397,7]
[331703120,1720666241750,-540.29120448,0.00027397,7]
[331703121,1720666241760,-500.0,0.00027397,7]
[331703122,1720666241770,-500.0,0.00027397,7]
[331703123,1720666241779,-1112.54,0.00027397,7]
[331703124,1720666241788,-821.87,0.00027397,7]
[331703125,1720666241798,-500.0,0.00027397,7]
[331703126,1720666241807,-565.89,0.00027397,7]
[331703127,1720666241816,-500.0,0.00027397,7]
[331703128,1720666241826,-500.0,0.00027397,7]
[331703129,1720666241835,-508.78410784,0.00027397,7]
[331703130,1720666241845,-504.21279752,0.00027397,7]
[331703131,1720666241854,-511.084096,0.00027397,7]
[331703132,1720666241864,-500.0,0.00027397,7]
[331703133,1720666241873,-507.15737686,0.00027397,7]
[331703134,1720666241882,-509.25492053,0.00027397,7]
[331703135,1720666241891,-500.0,0.00027397,7]
[331703136,1720666241900,-585.87,0.00027397,7]
[331703137,1720666241910,-500.0,0.00027397,7]
[331703138,1720666241919,-504.09747931,0.00027397,7]
[331703139,1720666241928,-500.0,0.00027397,7]
[331703140,1720666241938,-529.75041842,0.00027397,7]
[331703141,1720666241947,-500.0,0.00027397,7]
[331703142,1720666241957,-506.21113113,0.00027397,7]
[331703143,1720666241966,-500.0,0.00027397,7]
[331703144,1720666241975,-500.0,0.00027397,7]
[331703145,1720666241985,-500.0,0.00027397,7]
[331703146,1720666241994,-500.0,0.00027397,7]
[331703147,1720666242003,-500.0,0.00027397,7]
[331703148,1720666242014,-502.13604143,0.00027397,7]
[331703149,1720666242023,-155.37826238,0.00027397,7]
[331703150,1720666242033,-500.0,0.00027397,7]
[331703151,1720666242042,-509.32352373,0.00027397,7]
[331703152,1720666242051,-500.0,0.00027397,7]
[331703153,1720666242061,-500.0,0.00027397,7]
[331703154,1720666242070,-500.0,0.00027397,7]
[331703155,1720666242079,-511.39439832,0.00027397,7]
[331703156,1720666242089,-175.5408137,0.00027397,7]
[331703157,1720666242098,-656.98,0.00027397,7]
[331703158,1720666242107,-511.27534355,0.00027397,7]
[331703159,1720666242116,-504.89500772,0.00027397,7]
[331703160,1720666242126,-500.62295791,0.00027397,7]
[331703161,1720666242135,-474.82168607,0.00027397,7]
[331703162,1720666242144,-459.77097584,0.00027397,7]
[331703163,1720666242153,-500.0,0.00027397,7]
[331703164,1720666242163,-503.66230659,0.00027397,7]
[331703165,1720666242172,-505.47703889,0.00027397,7]
[331703166,1720666242182,-519.68300131,0.00027397,7]
[331703167,1720666242191,-578.44407192,0.00027397,7]
[331703168,1720666242200,-508.87232539,0.00027397,7]
[331703169,1720666242209,-508.34709448,0.00027397,7]
[331703170,1720666242219,-511.27066309,0.00027397,7]
[331703171,1720666242232,-523.64343137,0.00027397,7]
[331703172,1720666242242,-506.88250024,0.00027397,7]
[331703173,1720666242251,-291.8435049,0.00027397,7]
[331703174,1720666242260,-380.02280024,0.00027397,7]
[331703175,1720666242269,-521.92596149,0.00027397,7]
[331703176,1720666242279,-830.69,0.00027397,7]
[331703177,1720666242288,-503.92547854,0.00027397,7]
[331703178,1720666242297,-529.21350697,0.00027397,7]
[331703179,1720666242307,-502.91551831,0.00027397,7]
[331703180,1720666242316,-505.6596864,0.00027397,7]
[331703181,1720666242325,-517.15648468,0.00027397,7]
[331703182,1720666242334,-500.0,0.00027397,7]
[331703183,1720666242343,-221.62805921,0.00027397,7]
[331703184,1720666242353,-515.11182804,0.00027397,7]
[331703185,1720666242362,-500.0,0.00027397,7]
[331703186,1720666242371,-516.75697011,0.00027397,7]
[331703187,1720666242380,-515.21584444,0.00027397,7]
[331703188,1720666242390,-180.47101271,0.00027397,7]
[331703189,1720666242399,-198.85333845,0.00027397,7]
[331703190,1720666242409,-347.41848211,0.00027397,7]
[331703191,1720666242419,-692.66,0.00027397,7]
[331703192,1720666242429,-552.6666109,0.00027397,7]
[331703193,1720666242439,-502.06043175,0.00027397,7]
[331703194,1720666242451,-516.85066936,0.00027397,7]
[331703195,1720666242460,-237.84974112,0.00027397,7]
[331703196,1720666242470,-1500.0,0.00027397,7]
[331703197,1720666242479,-500.0,0.00027397,7]
[331703198,1720666242489,-511.16768208,0.00027397,7]
[331703199,1720666242499,-505.42514594,0.00027397,7]
[331703200,1720666242508,-504.12112158,0.00027397,7]
[331703201,1720666242517,-516.79184332,0.00027397,7]
[331703202,1720666242527,-1034.31,0.00027397,7]
[331703203,1720666242537,-500.0,0.00027397,7]
[331703204,1720666242546,-500.0,0.00027397,7]
[331703205,1720666242557,-202.80589411,0.00027397,7]
[331703206,1720666242567,-500.0,0.00027397,7]
[331703207,1720666242576,-500.0,0.00027397,7]
[331703208,1720666242586,-500.0,0.00027397,7]
[331703209,1720666242596,-500.0,0.00027397,7]
[331703210,1720666242606,-500.0,0.00027397,7]
[331703211,1720666242615,-500.0,0.00027397,7]
[331703212,1720666242625,-510.77118145,0.00027397,7]
[331703213,1720666242635,-470.01220556,0.00027397,7]
[331703214,1720666242645,-2861.67,0.00027397,7]
[331703215,1720666242655,-574.08,0.00027397,7]
[331703216,1720666242665,-520.06289906,0.00027397,7]
[331703217,1720666242675,-1585.22,0.00027397,7]
[331703218,1720666242685,-500.0,0.00027397,7]
[331703219,1720666242696,-554.18,0.00027397,7]
[331703220,1720666242705,-616.81,0.00027397,7]
[331703221,1720666242713,-500.0,0.00027397,7]
[331703222,1720666242723,-514.4141306,0.00027397,7]
[331703223,1720666242731,-500.0,0.00027397,7]
[331703224,1720666242741,-509.54041308,0.00027397,7]
[331703225,1720666242750,-157.78989102,0.00027397,7]
[331703226,1720666242760,-500.0,0.00027397,7]
[331703227,1720666242770,-500.0,0.00027397,7]
[331703228,1720666242779,-500.0,0.00027397,7]
[331703229,1720666242789,-500.0,0.00027397,7]
[331703230,1720666242799,-241.03281004,0.00027397,7]
[331703231,1720666242808,-496.17477427,0.00027397,7]
[331703232,1720666242818,-500.0,0.00027397,2]
[331703233,1720666242828,-500.0,0.00027397,2]
[331703234,1720666242838,-500.0,0.00027397,2]
[331703235,1720666242847,-500.0,0.00027397,2]
[331703236,1720666242856,-500.0,0.00027397,2]
[331703237,1720666242865,-500.0,0.00027397,2]
[331703238,1720666242875,-500.0,0.00027397,2]
[331703239,1720666242885,-500.0,0.00027397,2]
[331703240,1720666242895,-500.0,0.00027397,2]
[331703241,1720666242905,-500.0,0.00027397,2]
[331703242,1720666242915,-500.0,0.00027397,2]
[331703243,1720666242925,-500.0,0.00027397,2]
[331703244,1720666242936,-500.0,0.00027397,2]
[331703245,1720666242947,-500.0,0.00027397,2]
[331703246,1720666242957,-215.33527863,0.00027397,2]
[331703247,1720666242968,-500.0,0.00027397,2]
[331703248,1720666242976,-500.0,0.00027397,2]
[331703249,1720666242986,-500.0,0.00027397,2]
[331703250,1720666242995,-500.0,0.00027397,2]
[331703251,1720666243005,-500.0,0.00027397,2]
[331703252,1720666243014,-500.0,0.00027397,2]
[331703253,1720666243023,-500.0,0.00027397,2]
[331703254,1720666243032,-500.0,0.00027397,2]
[331703255,1720666243042,-500.0,0.00027397,2]
[331703256,1720666243149,-500.0,0.00027397,2]
[331703257,1720666243158,-500.0,0.00027397,2]
[331703258,1720666243168,-500.0,0.00027397,2]
[331703259,1720666243178,-500.0,0.00027397,2]
[331703260,1720666243187,-500.0,0.00027397,2]
[331703261,1720666243198,-500.0,0.00027397,2]
[331703262,1720666243207,-500.0,0.00027397,2]
[331703263,1720666243217,-500.0,0.00027397,2]
[331703264,1720666243228,-500.0,0.00027397,2]
[331703265,1720666243238,-500.0,0.00027397,2]
[331703266,1720666243248,-500.0,0.00027397,2]
[331703267,1720666243257,-500.0,0.00027397,2]
[331703268,1720666243267,-500.0,0.00027397,2]
[331703269,1720666243276,-500.0,0.00027397,2]
[331703270,1720666243285,-500.0,0.00027397,2]
[331703271,1720666243295,-500.0,0.00027397,2]
[331703272,1720666243305,-500.0,0.00027397,2]
[331703273,1720666243314,-500.0,0.00027397,2]
[331703274,1720666243324,-500.0,0.00027397,2]
[331703275,1720666243333,-500.0,0.00027397,7]
[331703276,1720666243343,-541.57,0.00027397,7]
[331703277,1720666243354,-1443.01,0.00027397,7]
[331703278,1720666243363,-500.0,0.00027397,2]
[331703279,1720666243373,-500.0,0.00027397,2]
[331703280,1720666243382,-500.0,0.00027397,2]
[331703281,1720666243392,-500.0,0.00027397,2]
[331703282,1720666243402,-500.0,0.00027397,2]
[331703283,1720666243411,-500.0,0.00027397,2]
[331703284,1720666243420,-500.0,0.00027397,2]
[331703285,1720666243429,-500.0,0.00027397,2]
[331703286,1720666243439,-500.0,0.00027397,2]
[331703287,1720666243449,-500.0,0.00027397,2]
[331703288,1720666243459,-500.0,0.00027397,2]
[331703289,1720666243468,-500.0,0.00027397,2]
[331703290,1720666243477,-500.0,0.00027397,2]
[331703291,1720666243487,-500.0,0.00027397,2]
[331703293,1720666243497,-500.0,0.00027397,2]
[331703294,1720666243507,-500.0,0.00027397,2]
[331703295,1720666243516,-500.0,0.00027397,2]
[331703296,1720666243525,-500.0,0.00027397,2]
[331703297,1720666243535,-500.0,0.00027397,2]
[331703298,1720666243544,-200.0,0.00027397,2]
[331703299,1720666243553,-500.0,0.00027397,7]
[331703300,1720666243563,-679.86,0.00027397,7]
[331703301,1720666243572,-500.0,0.00027397,2]
[331703302,1720666243581,-500.0,0.00027397,2]
[331703303,1720666243591,-300.0,0.00027397,2]
[331703304,1720666243600,-500.0,0.00027397,2]
[331703305,1720666243610,-2704.21,0.00027397,7]
[331703306,1720666243619,-158.6616312,0.00027397,7]
[331703307,1720666243629,-504.24105807,0.00027397,7]
[331703308,1720666243639,-500.0,0.00027397,7]
[331703309,1720666243648,-6641.28,0.00027397,7]
[331703310,1720666243658,-893.82,0.00027397,7]
[331703311,1720666243667,-556.49,0.00027397,7]
[331703312,1720666243677,-500.0,0.00027397,7]
[331703313,1720666243686,-500.0,0.00027397,7]
[331703314,1720666243697,-248.13234264,0.00027397,7]
[331703315,1720666243707,-170.39922346,0.00027397,7]
[331703316,1720666243716,-181.86153676,0.00027397,7]
[331703317,1720666243725,-500.0,0.00027397,7]
[331703318,1720666243735,-550.28096999,0.00027397,7]
[331703319,1720666243745,-507.59917498,0.00027397,7]
[331703320,1720666243755,-500.0,0.00027397,7]
[331703321,1720666243765,-500.0,0.00027397,7]
[331703322,1720666243774,-248.73343512,0.00027397,7]
[331703324,1720666243784,-498.2291867,0.00027397,7]
[331703325,1720666243794,-543.85894791,0.00027397,2]
[331703326,1720666243803,-509.86080475,0.00027397,7]
[331703327,1720666243813,-500.0,0.00027397,7]
[331703328,1720666243822,-483.32244362,0.00027397,7]
[331703329,1720666243831,-166.5630506,0.00027397,120]
[331703330,1720666243840,-154.59033561,0.00027399,2]
[331703332,1720666243850,-193.88291361,0.00027399,2]
[331703333,1720666243860,-154.59033561,0.00027399,2]
[331703334,1720666243869,-154.59033561,0.00027399,2]
[331703335,1720666243878,-2475.88098441,0.00027446,2]
[331703336,1720666243888,-500.0,0.00027669,7]
[331703337,1720666243898,-500.0,0.0002767,7]
[331703338,1720666243907,-505.84872366,0.00027671,7]
[331703339,1720666243916,-1459.56,0.00027671,4]
[331703340,1720666243926,-500.0,0.00027671,7]
[331703341,1720666243936,-500.0,0.00027671,7]
[331703342,1720666243947,-500.0,0.00027671,2]
[331703343,1720666243956,-500.0,0.00027671,7]
[331703344,1720666243966,-500.0,0.00027671,7]
[331703345,1720666243978,-500.0,0.00027671,7]
[331703346,1720666243987,-500.0,0.00027671,7]
[331703347,1720666243998,-500.0,0.00027671,7]
[331703348,1720666244007,-500.0,0.00027671,7]
[331703349,1720666244018,-1627.1,0.00027671,7]
[331703350,1720666244028,-916.63,0.00027671,7]
[331703351,1720666244038,-3721.14,0.00027671,7]
[331703352,1720666244047,-500.0,0.00027671,7]
[331703353,1720666244056,-500.0,0.00027671,7]
[331703354,1720666244066,-500.0,0.00027671,7]
[331703355,1720666244077,-500.0,0.00027671,7]
[331703356,1720666244087,-500.0,0.00027671,7]
[331703357,1720666244096,-500.0,0.00027671,7]
[331703358,1720666244106,-1112.54,0.00027671,7]
[331703359,1720666244115,-821.87,0.00027671,7]
[331703360,1720666244126,-500.0,0.00027671,7]
[331703361,1720666244135,-565.89,0.00027671,7]
[331703362,1720666244145,-500.0,0.00027671,7]
[331703363,1720666244154,-500.0,0.00027671,7]
[331703364,1720666244163,-500.0,0.00027671,7]
[331703365,1720666244173,-500.0,0.00027671,7]
[331703366,1720666244182,-585.87,0.00027671,7]
[331703367,1720666244192,-500.0,0.00027671,7]
[331703368,1720666244201,-635.8700441,0.00027671,7]
[331703369,1720666244211,-609.85873627,0.00027671,7]
[331703370,1720666244221,-509.38177595,0.00027671,7]
[331703371,1720666244231,-500.0,0.00027671,7]
[331703372,1720666244241,-656.98,0.00027671,7]
[331703373,1720666244250,-500.0,0.00027671,7]
[331703374,1720666244259,-830.69,0.00027671,7]
[331703375,1720666244269,-622.93318735,0.00027671,7]
[331703376,1720666244279,-500.0,0.00027671,7]
[331703377,1720666244288,-692.66,0.00027671,7]
[331703378,1720666244298,-1500.0,0.00027671,7]
[331703379,1720666244308,-500.0,0.00027671,7]
[331703380,1720666244317,-1034.31,0.00027671,7]
[331703381,1720666244327,-500.0,0.00027671,7]
[331703382,1720666244336,-500.0,0.00027671,7]
[331703383,1720666244346,-2861.67,0.00027671,7]
[331703384,1720666244355,-574.08,0.00027671,7]
[331703385,1720666244365,-1585.22,0.00027671,7]
[331703386,1720666244374,-500.0,0.00027671,7]
[331703387,1720666244384,-554.18,0.00027671,7]
[331703388,1720666244393,-616.81,0.00027671,7]
[331703389,1720666244403,-500.0,0.00027671,7]
[331703390,1720666244413,-500.0,0.00027671,7]
[331703391,1720666244422,-500.0,0.00027671,7]
[331703392,1720666244431,-500.0,0.00027671,7]
[331703393,1720666244440,-500.0,0.00027671,7]
[331703394,1720666244450,-285.92165846,0.00027671,7]
[331703395,1720666244459,-500.0,0.00027671,7]
[331703396,1720666244469,-541.57,0.00027671,7]
[331703397,1720666244478,-1443.01,0.00027671,7]
[331703398,1720666244487,-489.30334911,0.00027671,7]
[331703399,1720666244496,-679.86,0.00027671,7]
[331703400,1720666244506,-2704.21,0.00027671,7]
[331703401,1720666244516,-500.0,0.00027671,7]
[331703402,1720666244525,-6641.28,0.00027671,7]
[331703403,1720666244534,-893.82,0.00027671,7]
[331703404,1720666244543,-556.49,0.00027671,7]
[331703405,1720666244552,-348.67485687,0.00027671,7]
[331703406,1720666244561,-500.0,0.00027671,7]
[331703407,1720666244570,-500.0,0.00027671,7]
[331703408,1720666244580,-581.21235626,0.00027671,7]
[331703409,1720666244589,-504.55016843,0.00027671,7]
[331703410,1720666244598,-530.4203538,0.00027671,7]
[331703411,1720666244607,-158.076638,0.00027741,2]
[331703412,1720666244616,-500.0,0.00027944,7]
[331703413,1720666244625,-1459.56,0.00027945,4]
[331703414,1720666244634,-469.84587989,0.00027945,7]
[331703415,1720666244643,-500.0,0.00027945,7]
[331703416,1720666244653,-500.0,0.00027945,2]
[331703417,1720666244661,-500.0,0.00027945,7]
[331703418,1720666244671,-500.0,0.00027945,7]
[331703419,1720666244680,-500.0,0.00027945,7]
[331703420,1720666244689,-500.0,0.00027945,7]
[331703421,1720666244699,-500.0,0.00027945,7]
[331703422,1720666244710,-500.0,0.00027945,7]
[331703423,1720666244719,-1627.1,0.00027945,7]
[331703424,1720666244728,-916.63,0.00027945,7]
[331703425,1720666244738,-3721.14,0.00027945,7]
[331703426,1720666244747,-500.0,0.00027945,7]
[331703427,1720666244756,-500.0,0.00027945,7]
[331703428,1720666244765,-500.0,0.00027945,7]
[331703429,1720666244774,-500.0,0.00027945,7]